bitfinex-derivatives/quotes_BNBF0:USTF0_20250807
["timestamp","ask_amount","ask_price","bid_price","bid_amount"]
[1754526456304,0.79568853,769.44,768.89,1.12]
[1754526456510,0.79568853,769.43,768.89,1.12]
[1754526456708,0.79568853,769.42,768.89,1.12]
[1754526456908,0.79568853,769.41,768.89,1.12]
[1754526457108,0.79505447,769.4,768.89,1.12]
[1754526457414,0.87388297,769.68,768.89,1.12]
[1754526457609,0.79503945,769.67,768.89,1.12]
[1754526457811,0.79503945,769.66,768.89,1.12]
[1754526458108,0.79503945,769.65,768.89,1.12]
[1754526458308,0.79503945,769.64,768.89,1.12]
[1754526458508,0.79503945,769.63,768.89,1.12]
[1754526458714,0.79503945,769.62,768.89,1.12]
[1754526459009,0.79503945,769.61,768.89,1.12]
[1754526459313,0.79503945,769.6,768.89,1.12]
[1754526459510,0.79503945,769.59,768.89,1.12]
[1754526459714,0.79503945,769.58,768.89,1.12]
[1754526459908,0.79503945,769.57,768.89,1.12]
[1754526460110,0.79503945,769.56,768.89,1.12]
[1754526460310,0.79503945,769.55,768.89,1.12]
[1754526460514,0.79503945,769.54,768.89,1.12]
[1754526460714,0.79503945,769.53,768.89,1.12]
[1754526460915,0.79503945,769.52,768.89,1.12]
[1754526461110,0.79503945,769.51,768.89,1.12]
[1754526461312,0.79503945,769.5,768.89,1.12]
[1754526461611,0.79503945,769.49,768.89,1.12]
[1754526461812,0.79503945,769.48,768.89,1.12]
[1754526462016,0.79503945,769.47,768.89,1.12]
[1754526462213,0.79503945,769.46,768.89,1.12]
[1754526462417,0.79503945,769.45,768.89,1.12]
[1754526462614,0.79503945,769.44,768.89,1.12]
[1754526462812,0.79503945,769.43,768.89,1.12]
[1754526463014,0.79503945,769.42,768.89,1.12]
[1754526463217,0.79503945,769.41,768.89,1.12]
[1754526463513,0.87388297,769.65,768.89,1.12]
[1754526463713,0.79477077,769.64,768.89,1.12]
[1754526463914,0.79477077,769.63,768.89,1.12]
[1754526464218,0.79477077,769.62,768.89,1.12]
[1754526464420,0.79477077,769.61,768.89,1.12]
[1754526464619,0.79477077,769.6,768.89,1.12]
[1754526464918,0.79477077,769.59,768.89,1.12]
[1754526465118,0.79477077,769.58,768.89,1.12]
[1754526465315,0.79477077,769.57,768.89,1.12]
[1754526465515,0.79477077,769.56,768.89,1.12]
[1754526465714,0.79477077,769.55,768.89,1.12]
[1754526465918,0.79477077,769.54,768.89,1.12]
[1754526466116,0.79477077,769.53,768.89,1.12]
[1754526466317,0.79477077,769.52,768.89,1.12]
[1754526466518,0.79477077,769.51,768.89,1.12]
[1754526466718,0.79477077,769.5,768.89,1.12]
[1754526467020,0.79477077,769.49,768.89,1.12]
[1754526467219,0.79477077,769.48,768.89,1.12]
[1754526467417,0.79477077,769.47,768.89,1.12]
[1754526467622,0.79477077,769.46,768.89,1.12]
[1754526467822,0.79477077,769.45,768.89,1.12]
[1754526468019,0.79477077,769.44,768.89,1.12]
[1754526468323,0.79477077,769.43,768.89,1.12]
[1754526468522,0.79477077,769.42,768.89,1.12]
[1754526468723,0.79477077,769.41,768.89,1.12]
[1754526469021,0.87388297,769.65,768.89,1.12]
[1754526469221,1.66867308,769.64,768.89,1.12]
[1754526469424,0.79479011,769.63,768.89,1.12]
[1754526469720,0.79479011,769.62,768.89,1.12]
[1754526469922,0.79479011,769.61,768.89,1.12]
[1754526470122,0.79479011,769.6,768.89,1.12]
[1754526470421,0.79479011,769.59,768.89,1.12]
[1754526470723,0.79479011,769.58,768.89,1.12]
[1754526470922,0.79479011,769.57,768.89,1.12]
[1754526471225,0.79479011,769.56,768.89,1.12]
[1754526471424,0.79479011,769.55,768.89,1.12]
[1754526471727,0.79479011,769.54,768.89,1.12]
[1754526471922,0.79479011,769.53,768.89,1.12]
[1754526472124,0.79479011,769.52,768.89,1.12]
[1754526472327,0.79479011,769.51,768.89,1.12]
[1754526472523,0.79479011,769.5,768.89,1.12]
[1754526472826,0.79479011,769.49,768.89,1.12]
[1754526473026,0.79479011,769.48,768.89,1.12]
[1754526473226,0.79479011,769.47,768.89,1.12]
[1754526473424,0.79479011,769.46,768.89,1.12]
[1754526473629,0.79479011,769.45,768.89,1.12]
[1754526473825,0.79479011,769.44,768.89,1.12]
[1754526474025,0.79479011,769.43,768.89,1.12]
[1754526474325,0.79479011,769.42,768.89,1.12]
[1754526474626,0.79479011,769.41,768.89,1.12]
[1754526474830,0.79479011,769.4,768.89,1.12]
[1754526475126,0.87388297,769.63,768.89,1.12]
[1754526475330,0.7951478,769.62,768.89,1.12]
[1754526475529,0.7951478,769.61,768.89,1.12]
[1754526475829,0.7951478,769.6,768.89,1.12]
[1754526476029,0.87388297,769.64,768.89,1.12]
[1754526476030,0.7951478,769.59,768.89,1.12]
[1754526476228,0.7951478,769.58,768.89,1.12]
[1754526476426,0.7951478,769.57,768.89,1.12]
[1754526476629,0.7951478,769.56,768.89,1.12]
[1754526476830,0.7951478,769.55,768.89,1.12]
[1754526477028,0.7951478,769.54,768.89,1.12]
[1754526477229,0.7951478,769.53,768.89,1.12]
[1754526477429,0.7951478,769.52,768.89,1.12]
[1754526477628,0.7951478,769.51,768.89,1.12]
[1754526477933,0.7951478,769.5,768.89,1.12]
[1754526478232,0.7951478,769.49,768.89,1.12]
[1754526478434,0.7951478,769.48,768.89,1.12]
[1754526478729,0.87388297,769.63,768.89,1.12]
[1754526478730,0.7951478,769.47,768.89,1.12]
[1754526478928,0.7951478,769.46,768.89,1.12]
[1754526479133,0.7951478,769.45,768.89,1.12]
[1754526479334,0.7951478,769.44,768.89,1.12]
[1754526479633,0.7951478,769.43,768.89,1.12]
[1754526479828,0.7951478,769.42,768.89,1.12]
[1754526480031,0.7951478,769.41,768.89,1.12]
[1754526480230,0.7951478,769.4,768.89,1.12]
[1754526480528,0.7951478,769.39,768.88,0.22611572]
[1754526480729,0.7951478,769.38,768.88,0.22611572]
[1754526481030,0.87388297,769.63,768.88,0.22611572]
[1754526481229,0.79555694,769.62,768.88,0.22611572]
[1754526481433,0.79555694,769.61,768.88,0.22611572]
[1754526481629,0.79555694,769.6,768.88,0.22611572]
[1754526481833,0.79555694,769.59,768.88,0.22611572]
[1754526482034,0.79555694,769.58,768.88,0.22611572]
[1754526482234,0.79555694,769.57,768.88,0.22611572]
[1754526482537,0.79555694,769.56,768.88,0.22611572]
[1754526482831,0.79555694,769.55,768.88,0.22611572]
[1754526483131,0.79555694,769.54,768.88,0.22611572]
[1754526483338,0.79555694,769.53,768.89,0.965]
[1754526483636,0.79555694,769.52,768.89,0.965]
[1754526483932,0.79555694,769.51,768.89,0.965]
[1754526484135,0.79555694,769.5,768.89,0.965]
[1754526484334,0.79555694,769.49,768.89,0.965]
[1754526484534,0.79555694,769.48,768.89,0.965]
[1754526484732,0.79555694,769.47,768.89,0.965]
[1754526484931,0.79555694,769.46,768.89,0.965]
[1754526485132,0.79555694,769.45,768.89,0.965]
[1754526485331,0.79555694,769.44,768.89,0.965]
[1754526485532,0.79555694,769.43,768.89,0.965]
[1754526485734,0.79555694,769.42,768.89,0.965]
[1754526485936,0.79555694,769.41,768.89,0.965]
[1754526486135,0.79555694,769.4,768.89,0.965]
[1754526486333,0.79555694,769.39,768.89,0.965]
[1754526486534,0.79555694,769.38,768.89,0.965]
[1754526486735,0.79555694,769.37,768.89,0.965]
[1754526486934,0.79555694,769.36,768.89,0.965]
[1754526487134,0.2261451,769.99,768.89,0.965]
[1754526487135,0.79555694,769.35,768.89,0.965]
[1754526487439,0.79555694,769.34,768.89,0.965]
[1754526487639,0.79555694,769.33,768.89,0.965]
[1754526487835,0.87388297,769.59,768.89,0.965]
[1754526488136,0.79654513,769.58,768.89,0.965]
[1754526488339,0.79654513,769.57,768.89,0.965]
[1754526488538,0.79654513,769.56,768.89,0.965]
[1754526488837,0.79654513,769.55,768.89,0.965]
[1754526489037,0.79654513,769.54,768.89,0.965]
[1754526489238,0.79683524,769.53,768.89,0.965]
[1754526489437,0.79683524,769.52,768.89,0.965]
[1754526489635,0.79683524,769.51,768.89,0.965]
[1754526489842,0.79683524,769.5,768.89,0.965]
[1754526490138,0.79683524,769.49,768.89,0.965]
[1754526490441,0.87513937,769.66,768.89,0.965]
[1754526490442,0.79683524,769.48,768.89,0.965]
[1754526490741,0.79683524,769.47,768.89,0.965]
[1754526490940,0.79683524,769.46,768.89,0.965]
[1754526491143,0.79683524,769.45,768.89,0.965]
[1754526491337,0.79683524,769.44,768.89,0.965]
[1754526491641,0.79683524,769.43,768.89,0.965]
[1754526491838,0.87513937,769.56,768.89,0.965]
[1754526491839,0.79683524,769.42,768.89,0.965]
[1754526492040,0.79683524,769.41,768.89,0.965]
[1754526492238,0.79683524,769.4,768.89,0.965]
[1754526492441,0.79683524,769.39,768.89,0.965]
[1754526492644,0.79683524,769.38,768.89,0.965]
[1754526492841,0.79683524,769.37,768.89,0.965]
[1754526493039,0.79683524,769.36,768.89,0.965]
[1754526493239,0.79683524,769.35,768.89,0.965]
[1754526493445,0.79683524,769.34,768.89,0.965]
[1754526493643,0.87513937,769.63,768.89,0.965]
[1754526493848,0.79729103,769.62,768.89,0.965]
[1754526494047,0.79729103,769.61,768.89,0.965]
[1754526494247,0.79729103,769.6,768.89,0.965]
[1754526494447,0.79729103,769.59,768.89,0.965]
[1754526494649,0.79729103,769.58,768.89,0.965]
[1754526494944,0.79729103,769.57,768.89,0.965]
[1754526495145,0.79729103,769.56,768.89,0.965]
[1754526495346,0.79729103,769.55,768.89,0.965]
[1754526495549,0.79729103,769.54,768.89,0.965]
[1754526495848,0.79729103,769.53,768.89,0.965]
[1754526496148,0.79729103,769.52,768.89,0.965]
[1754526496348,0.79729103,769.51,768.89,0.965]
[1754526496645,0.79729103,769.5,768.89,0.965]
[1754526496848,0.79729103,769.49,768.89,0.965]
[1754526497046,0.79729103,769.48,768.89,0.965]
[1754526497245,0.79729103,769.47,768.89,0.965]
[1754526497449,0.79729103,769.46,768.89,0.965]
[1754526497650,0.79729103,769.45,768.89,0.965]
[1754526497850,0.79729103,769.44,768.89,0.965]
[1754526498150,0.79729103,769.43,768.89,0.965]
[1754526498347,0.79729103,769.42,768.89,0.965]
[1754526498545,0.79729103,769.41,768.89,0.965]
[1754526498750,0.87513937,769.63,768.89,0.965]
[1754526498751,0.79729103,769.4,768.89,0.965]
[1754526498948,0.79729103,769.39,768.89,0.965]
[1754526499148,0.79729103,769.38,768.89,0.965]
[1754526499349,0.79729103,769.37,768.89,0.965]
[1754526499552,0.79729103,769.36,768.89,0.965]
[1754526499747,0.87513937,769.63,768.89,0.965]
[1754526499950,0.79697146,769.62,768.89,0.965]
[1754526500149,0.79697146,769.61,768.89,0.965]
[1754526500353,0.79697146,769.6,768.89,0.965]
[1754526500553,0.79697146,769.59,768.89,0.965]
[1754526500751,0.79697146,769.58,768.89,0.965]
[1754526501054,0.79697146,769.57,768.89,0.965]
[1754526501254,0.79697146,769.56,768.89,0.965]
[1754526501550,0.79697146,769.55,768.89,0.965]
[1754526501755,0.79697146,769.54,768.89,0.965]
[1754526502051,0.79697146,769.53,768.89,0.965]
[1754526502353,0.79697146,769.52,768.89,0.965]
[1754526502555,0.79697146,769.51,768.89,0.965]
[1754526502851,0.2261451,769.99,768.89,0.965]
[1754526502852,0.79697146,769.5,768.89,0.965]
[1754526503152,0.79697146,769.49,768.89,0.965]
[1754526503350,0.79697146,769.48,768.89,0.965]
[1754526503549,0.79697146,769.47,768.89,0.965]
[1754526503749,0.79697146,769.46,768.89,0.965]
[1754526503953,0.87513937,769.6,768.89,0.965]
[1754526503954,0.79697146,769.45,768.89,0.965]
[1754526504251,0.79697146,769.44,768.89,0.965]
[1754526504451,0.79697146,769.43,768.89,0.965]
[1754526504752,0.79697146,769.42,768.89,0.965]
[1754526505056,0.79697146,769.41,768.89,0.965]
[1754526505251,0.79697146,769.4,768.89,0.965]
[1754526505455,0.79697146,769.39,768.89,0.965]
[1754526505649,0.79697146,769.38,768.89,2.7071447]
[1754526505853,0.79697146,769.37,768.89,2.7071447]
[1754526506050,0.87513937,769.6,768.89,2.7071447]
[1754526506257,0.79682703,769.59,768.89,2.7071447]
[1754526506557,0.79682703,769.58,768.89,2.7071447]
[1754526506753,0.79682703,769.57,768.89,2.7071447]
[1754526507051,0.79682703,769.56,768.89,2.7071447]
[1754526507351,0.79682703,769.55,768.89,2.7071447]
[1754526507556,0.87513937,769.6,768.89,2.7071447]
[1754526507557,0.79682703,769.54,768.89,2.7071447]
[1754526507754,0.79682703,769.53,768.89,2.7071447]
[1754526507958,0.79682703,769.52,768.89,2.7071447]
[1754526508157,0.79682703,769.51,768.89,2.7071447]
[1754526508357,0.79682703,769.5,768.89,2.7071447]
[1754526508558,0.79682703,769.49,768.89,2.7071447]
[1754526508853,0.79682703,769.48,768.89,2.7071447]
[1754526509055,0.79682703,769.47,768.89,2.7071447]
[1754526509254,0.79682703,769.46,768.89,2.7071447]
[1754526509458,0.79682703,769.45,768.9,1.7421447]
[1754526509758,0.79682703,769.44,768.9,1.7421447]
[1754526509958,0.79682703,769.43,768.9,1.7421447]
[1754526510158,0.79682703,769.42,768.9,1.7421447]
[1754526510357,0.79682703,769.41,768.9,1.7421447]
[1754526510558,0.79682703,769.4,768.9,1.7421447]
[1754526510857,0.79682703,769.39,768.9,1.7421447]
[1754526511058,0.79682703,769.38,768.9,1.7421447]
[1754526511258,0.79682703,769.37,768.9,1.7421447]
[1754526511458,0.87513937,769.59,768.9,1.7421447]
[1754526511660,0.79676163,769.58,768.9,1.7421447]
[1754526511857,0.79676163,769.57,768.9,1.7421447]
[1754526512060,0.79676163,769.56,768.9,1.7421447]
[1754526512258,0.79676163,769.55,768.89,2.7071447]
[1754526512463,0.79676163,769.54,768.89,2.7071447]
[1754526512758,0.79676163,769.53,768.89,2.7071447]
[1754526512962,0.79676163,769.52,768.89,2.7071447]
[1754526513163,0.79676163,769.51,768.89,0.965]
[1754526513364,0.79676163,769.5,768.89,0.965]
[1754526513562,0.79676163,769.49,768.89,0.965]
[1754526513762,0.79676163,769.48,768.89,0.965]
[1754526514062,0.79676163,769.47,768.89,0.965]
[1754526514261,0.79676163,769.46,768.89,0.965]
[1754526514465,0.79676163,769.45,768.89,0.965]
[1754526514765,0.79676163,769.44,768.89,0.965]
[1754526514964,0.87513937,769.57,768.89,0.965]
[1754526514965,0.79676163,769.43,768.89,0.965]
[1754526515264,0.79676163,769.42,768.89,0.965]
[1754526515462,0.79676163,769.41,768.89,0.965]
[1754526515670,0.79676163,769.4,768.89,0.965]
[1754526515864,0.79676163,769.39,768.89,0.965]
[1754526516062,0.79676163,769.38,768.89,0.965]
[1754526516261,0.79676163,769.37,768.89,0.965]
[1754526516465,0.79676163,769.36,768.89,0.965]
[1754526516663,0.79676163,769.35,768.89,0.965]
[1754526516863,0.87513937,769.57,768.89,0.965]
[1754526517066,0.79677015,769.56,768.89,0.965]
[1754526517267,0.79677015,769.55,768.89,0.965]
[1754526517566,0.79677015,769.54,768.89,0.965]
[1754526517760,0.79677015,769.53,768.89,0.965]
[1754526517964,0.79677015,769.52,768.89,0.965]
[1754526518164,0.79677015,769.51,768.89,0.965]
[1754526518363,0.87513937,769.57,768.89,0.965]
[1754526518364,0.79677015,769.5,768.89,0.965]
[1754526518564,0.79677015,769.49,768.89,0.965]
[1754526518766,0.79677015,769.48,768.89,0.965]
[1754526518967,0.79677015,769.47,768.89,0.965]
[1754526519267,0.79677015,769.46,768.89,0.965]
[1754526519567,0.79677015,769.45,768.89,0.965]
[1754526519866,0.79677015,769.44,768.89,0.965]
[1754526520061,0.79677015,769.43,768.89,0.965]
[1754526520266,0.79677015,769.42,768.89,2.7071447]
[1754526520468,0.79677015,769.41,768.89,2.7071447]
[1754526520767,0.79677015,769.4,768.89,0.965]
[1754526521063,0.79677015,769.39,768.89,0.965]
[1754526521265,0.79677015,769.38,768.89,0.965]
[1754526521463,0.79677015,769.37,768.89,0.965]
[1754526521663,0.79677015,769.36,768.89,0.965]
[1754526521966,0.79677015,769.35,768.89,0.965]
[1754526522168,0.87513937,769.58,768.89,0.965]
[1754526522366,0.79680138,769.57,768.89,0.965]
[1754526522565,0.79680138,769.56,768.89,0.965]
[1754526522765,0.79680138,769.55,768.89,0.965]
[1754526522966,0.79680138,769.54,768.89,0.965]
[1754526523171,0.79680138,769.53,768.89,0.965]
[1754526523370,0.79680138,769.52,768.89,0.965]
[1754526523667,0.79680138,769.51,768.89,0.965]
[1754526523865,0.87513937,769.59,768.89,0.965]
[1754526523866,0.79680138,769.5,768.89,0.965]
[1754526524169,0.79680138,769.49,768.89,0.965]
[1754526524369,0.79680138,769.48,768.89,0.965]
[1754526524570,0.79680138,769.47,768.89,0.965]
[1754526524768,0.79680138,769.46,768.89,0.965]
[1754526525070,0.79680138,769.45,768.89,0.965]
[1754526525269,0.79680138,769.44,768.89,0.965]
[1754526525470,0.79682371,769.43,768.89,0.965]
[1754526525676,0.79682371,769.42,768.89,0.965]
[1754526525870,0.79682371,769.41,768.89,0.965]
[1754526526166,0.79682371,769.4,768.89,0.965]
[1754526526466,0.79682371,769.39,768.89,0.965]
[1754526526665,0.79682371,769.38,768.89,0.965]
[1754526526866,0.79682371,769.37,768.89,0.965]
[1754526527071,0.79682371,769.36,768.89,0.965]
[1754526527367,0.79682371,769.35,768.89,0.965]
[1754526527568,0.87446663,769.59,768.89,0.965]
[1754526527773,0.79684116,769.58,768.89,0.965]
[1754526528068,0.79684116,769.57,768.89,0.965]
[1754526528268,0.79684116,769.56,768.89,0.965]
[1754526528472,0.79684116,769.55,768.89,0.965]
[1754526528673,0.79684116,769.54,768.89,0.965]
[1754526528873,0.79684116,769.53,768.89,0.965]
[1754526529076,0.79684116,769.52,768.89,0.965]
[1754526529275,0.79684116,769.51,768.88,0.22611572]
[1754526529573,0.79684116,769.5,768.88,0.22611572]
[1754526529776,0.79684116,769.49,768.88,0.22611572]
[1754526530076,0.79684116,769.48,768.88,0.22611572]
[1754526530371,0.79684116,769.47,768.88,0.22611572]
[1754526530571,0.79684116,769.46,768.88,1.96826042]
[1754526530776,0.79684116,769.45,768.88,1.96826042]
[1754526530976,0.79684116,769.44,768.88,1.96826042]
[1754526531279,0.79684116,769.43,768.88,1.96826042]
[1754526531477,0.79684116,769.42,768.88,1.96826042]
[1754526531677,0.79684116,769.41,768.88,1.96826042]
[1754526531878,0.79684116,769.4,768.88,0.22611572]
[1754526532076,0.79684116,769.39,768.88,0.22611572]
[1754526532277,0.79684116,769.38,768.88,0.22611572]
[1754526532477,0.79684116,769.37,768.88,0.22611572]
[1754526532680,0.79684116,769.36,768.88,0.22611572]
[1754526532881,0.79684116,769.35,768.89,1.7421447]
[1754526533078,0.79684116,769.34,768.89,1.7421447]
[1754526533378,0.87446663,769.57,768.89,1.7421447]
[1754526533577,0.7969093,769.56,768.89,1.7421447]
[1754526533876,0.7969093,769.55,768.89,1.7421447]
[1754526534081,0.7969093,769.54,768.89,1.7421447]
[1754526534279,0.7969093,769.53,768.89,1.7421447]
[1754526534481,0.7969093,769.52,768.89,1.7421447]
[1754526534680,0.7969093,769.51,768.89,1.7421447]
[1754526534879,0.7969093,769.5,768.89,1.7421447]
[1754526535078,0.7969093,769.49,768.89,1.7421447]
[1754526535279,0.87446663,769.57,768.89,1.7421447]
[1754526535280,0.7969093,769.48,768.89,1.7421447]
[1754526535580,0.7969093,769.48,768.88,0.22611572]
[1754526535581,0.7969093,769.47,768.88,0.22611572]
[1754526535780,0.7969093,769.46,768.88,0.22611572]
[1754526535980,0.7969093,769.45,768.88,0.22611572]
[1754526536181,0.7969093,769.44,768.88,0.22611572]
[1754526536384,0.87446663,769.58,768.88,0.22611572]
[1754526536385,0.7969093,769.43,768.88,0.22611572]
[1754526536582,0.7969093,769.42,768.88,0.22611572]
[1754526536785,0.7969093,769.41,768.88,0.22611572]
[1754526536986,0.7969093,769.4,768.88,0.22611572]
[1754526537285,0.87446663,769.58,768.88,0.22611572]
[1754526537286,0.7969093,769.39,768.88,0.22611572]
[1754526537482,0.7969093,769.38,768.88,0.22611572]
[1754526537681,0.7969093,769.37,768.88,0.22611572]
[1754526537984,0.7969093,769.36,768.88,0.22611572]
[1754526538181,0.7969093,769.35,768.88,0.22611572]
[1754526538384,0.7969093,769.34,768.88,0.22611572]
[1754526538584,0.87446663,769.59,768.88,0.22611572]
[1754526538786,0.79697258,769.58,768.88,0.22611572]
[1754526539081,0.87446663,769.59,768.88,0.22611572]
[1754526539082,0.79697258,769.57,768.88,0.22611572]
[1754526539284,0.79697258,769.56,768.88,0.22611572]
[1754526539482,0.79697258,769.55,768.88,0.22611572]
[1754526539682,0.79697258,769.54,768.88,0.22611572]
[1754526539885,0.79697258,769.53,768.88,0.22611572]
[1754526540179,0.79697258,769.52,768.88,0.22611572]
[1754526540383,0.79697258,769.51,768.88,0.22611572]
[1754526540682,0.79697258,769.5,768.88,0.22611572]
[1754526540882,0.79697258,769.49,768.88,0.22611572]
[1754526541081,0.79697258,769.48,768.88,0.22611572]
[1754526541382,0.79697258,769.47,768.88,0.22611572]
[1754526541580,0.79697258,769.46,768.88,0.22611572]
[1754526541782,0.79697258,769.45,768.88,0.22611572]
[1754526541984,0.79697258,769.44,768.88,0.22611572]
[1754526542184,0.79697258,769.43,768.88,0.22611572]
[1754526542384,0.79697258,769.42,768.88,0.22611572]
[1754526542583,0.79697258,769.41,768.88,0.22611572]
[1754526542787,0.79697258,769.4,768.88,0.22611572]
[1754526542987,0.79697258,769.39,768.88,0.22611572]
[1754526543186,0.79697258,769.38,768.88,0.22611572]
[1754526543388,0.79697258,769.37,768.88,0.22611572]
[1754526543690,0.79697258,769.36,768.88,0.22611572]
[1754526543888,0.79697258,769.35,768.88,0.22611572]
[1754526544085,0.79697258,769.34,768.88,0.22611572]
[1754526544289,0.87446663,769.58,768.88,0.22611572]
[1754526544490,0.79694945,769.57,768.88,0.22611572]
[1754526544786,0.79694945,769.56,768.88,0.22611572]
[1754526545085,0.79694945,769.55,768.88,0.22611572]
[1754526545289,0.79694945,769.54,768.89,1.7421447]
[1754526545590,0.79694945,769.53,768.89,1.7421447]
[1754526545790,0.79694945,769.52,768.89,1.7421447]
[1754526545989,0.79694945,769.51,768.89,1.7421447]
[1754526546188,0.79694945,769.5,768.89,1.7421447]
[1754526546388,0.79694945,769.49,768.89,1.7421447]
[1754526546588,0.79694945,769.48,768.89,1.7421447]
[1754526546789,0.79694945,769.47,768.89,1.7421447]
[1754526546987,0.79694945,769.46,768.89,1.7421447]
[1754526547293,0.79694945,769.45,768.89,1.7421447]
[1754526547490,0.79694945,769.44,768.89,1.7421447]
[1754526547689,0.79694945,769.43,768.89,1.7421447]
[1754526547893,0.79694945,769.42,768.89,1.7421447]
[1754526548092,0.79694945,769.41,768.9,1.7421447]
[1754526548394,0.79694945,769.4,768.9,1.7421447]
[1754526548591,0.79694945,769.39,768.9,1.7421447]
[1754526548794,0.79694945,769.38,768.9,1.7421447]
[1754526548991,0.79694945,769.37,768.9,1.7421447]
[1754526549292,0.79694945,769.36,768.9,1.7421447]
[1754526549495,0.79694945,769.35,768.9,1.7421447]
[1754526549695,0.79694945,769.34,768.9,1.7421447]
[1754526549895,0.79694945,769.33,768.9,1.7421447]
[1754526550097,0.87446663,769.55,768.9,1.7421447]
[1754526550292,0.79704843,769.54,768.9,1.7421447]
[1754526550495,0.79704843,769.53,768.9,1.7421447]
[1754526550692,0.79704843,769.52,768.89,1.7421447]
[1754526550892,0.79704843,769.51,768.89,1.7421447]
[1754526551096,0.79704843,769.5,768.89,1.7421447]
[1754526551296,0.79704843,769.49,768.9,1.7421447]
[1754526551495,0.79704843,769.48,768.9,1.7421447]
[1754526551796,0.79704843,769.47,768.9,1.7421447]
[1754526551997,0.79704843,769.46,768.9,1.7421447]
[1754526552196,0.79704843,769.45,768.9,1.7421447]
[1754526552395,0.79704843,769.44,768.9,1.7421447]
[1754526552594,0.79704843,769.43,768.9,1.7421447]
[1754526552794,0.79704843,769.42,768.89,1.7421447]
[1754526553097,0.79704843,769.41,768.89,1.7421447]
[1754526553294,0.79704843,769.4,768.89,1.7421447]
[1754526553594,0.79704843,769.39,768.89,1.7421447]
[1754526553797,0.79704843,769.38,768.89,1.7421447]
[1754526553999,0.79704843,769.37,768.89,1.7421447]
[1754526554200,0.79704843,769.36,768.89,1.7421447]
[1754526554398,0.79704843,769.35,768.89,1.7421447]
[1754526554600,0.79704843,769.34,768.89,1.7421447]
[1754526554801,0.79704843,769.33,768.89,1.7421447]
[1754526554999,0.79704843,769.32,768.89,1.7421447]
[1754526555300,0.87446663,769.55,768.89,1.7421447]
[1754526555601,0.79710844,769.54,768.89,1.7421447]
[1754526555800,0.79710844,769.53,768.88,0.22611572]
[1754526556000,0.79710844,769.52,768.88,0.22611572]
[1754526556200,0.79710844,769.51,768.88,0.22611572]
[1754526556404,0.79710844,769.5,768.88,0.22611572]
[1754526556704,0.79710844,769.49,768.88,0.22611572]
[1754526556905,0.79710844,769.48,768.88,0.22611572]
[1754526557105,0.79710844,769.47,768.88,0.22611572]
[1754526557301,0.79710844,769.46,768.88,0.22611572]
[1754526557503,0.87446663,769.58,768.88,0.22611572]
[1754526557504,0.79710844,769.45,768.88,0.22611572]
[1754526557804,0.79710844,769.44,768.88,0.22611572]
[1754526558003,0.79710844,769.43,768.88,0.22611572]
[1754526558202,0.79710844,769.42,768.88,0.22611572]
[1754526558407,0.79710844,769.41,768.88,0.22611572]
[1754526558601,0.79710844,769.4,768.88,0.22611572]
[1754526558905,0.79710844,769.39,768.88,0.22611572]
[1754526559106,0.79710844,769.38,768.88,0.22611572]
[1754526559402,0.79710844,769.37,768.88,0.22611572]
[1754526559700,0.79710844,769.36,768.88,0.22611572]
[1754526559906,0.79710844,769.35,768.88,0.22611572]
[1754526560104,0.79710844,769.34,768.88,0.22611572]
[1754526560307,0.79710844,769.33,768.88,0.22611572]
[1754526560604,0.79710844,769.32,768.88,0.22611572]
[1754526560809,0.87446663,769.58,768.88,0.22611572]
[1754526561004,0.79717223,769.57,768.88,0.22611572]
[1754526561308,0.79717223,769.56,768.88,0.22611572]
[1754526561506,0.79717223,769.55,768.88,0.22611572]
[1754526561705,0.79717223,769.54,768.88,0.22611572]
[1754526561906,0.79717223,769.53,768.88,0.22611572]
[1754526562206,0.79717223,769.52,768.88,0.22611572]
[1754526562409,0.79717223,769.51,768.88,0.22611572]
[1754526562705,0.79717223,769.5,768.88,0.22611572]
[1754526562905,0.79717223,769.49,768.88,0.22611572]
[1754526563205,0.79717223,769.48,768.88,0.22611572]
[1754526563404,0.79717223,769.47,768.88,0.22611572]
[1754526563608,0.79717223,769.46,768.88,0.22611572]
[1754526563805,0.79717223,769.45,768.88,0.22611572]